fUSD/lending_fUSD_20240708
["ID","MTS","AMOUNT","RATE_DAILY","PERIOD"]
[331532294,1720451443697,-150.0,0.00032877,2]
[331532295,1720451443707,-655.256263,0.00033,14]
[331532296,1720451443720,-150.71034106,0.00033031,7]
[331532297,1720451443730,-166.6666667,0.00033131,7]
[331532298,1720451443739,-411.73760477,0.00033248,7]
[331532299,1720451443749,-171.512574,0.00033386,7]
[331532300,1720451443759,-200.0,0.000334,2]
[331532301,1720451443768,-8677.0,0.00033589,2]
[331532302,1720451443777,-153.67497119,0.00033612,7]
[331532303,1720451443787,-153.67497119,0.0003369,7]
[331532304,1720451443796,-156.84,0.00033807,2]
[331532305,1720451443806,-411.73760477,0.00033823,7]
[331532306,1720451443816,-411.73760477,0.00033857,7]
[331532307,1720451443826,-1600.0,0.00034,2]
[331532308,1720451443836,-151.29388906,0.00034153,7]
[331532309,1720451443846,-2500.0,0.000342,2]
[331532310,1720451443855,-153.67497119,0.00034236,7]
[331532311,1720451443864,-150.71034106,0.00034278,7]
[331532312,1720451443874,-1007.4,0.000343,2]
[331532314,1720451443883,-344.3,0.000343,2]
[331532317,1720451443893,-170.36939167,0.00034391,7]
[331532318,1720451443903,-171.512574,0.00034622,7]
[331532319,1720451443913,-153.67497119,0.00034745,7]
[331532320,1720451443923,-283.33195133,0.00034759,7]
[331532321,1720451443933,-411.73760477,0.00035003,7]
[331532322,1720451443943,-796.76486149,0.00035285,7]
[331532323,1720451443952,-1273.3040719,0.00035361,7]
[331532324,1720451443962,-158.47387793,0.00035402,7]
[331532325,1720451443972,-158.47387793,0.00035416,7]
[331532326,1720451443982,-154.84072062,0.000356,7]
[331532327,1720451443992,-1007.4,0.0003589,2]
[331532328,1720451444001,-1273.3040719,0.00035929,7]
[331532329,1720451444011,-1650.0,0.00036,2]
[331532330,1720451444021,-170.36939167,0.00036416,7]
[331532331,1720451444031,-283.33195133,0.00036425,7]
[331532332,1720451444041,-156.84,0.00036496,2]
[331532333,1720451444050,-1273.3040719,0.00036743,7]
[331532334,1720451444060,-160.31827694,0.0003675,7]
[331532335,1720451444069,-160.0,0.00036798,30]
[331532336,1720451444079,-983.0,0.00036798,30]
[331532337,1720451444088,-191.0,0.00036798,30]
[331532338,1720451444098,-191.0,0.00036798,30]
[331532339,1720451444107,-191.0,0.00036798,30]
[331532340,1720451444117,-200.0,0.00036798,30]
[331532341,1720451444127,-182.0,0.00036798,30]
[331532342,1720451444136,-200.0,0.00036798,30]
[331532343,1720451444145,-182.0,0.00036798,30]
[331532344,1720451444155,-150.1,0.00036798,30]
[331532345,1720451444164,-154.154886,0.00036798,30]
[331532346,1720451444174,-2444.14123829,0.00036798,120]
[331532347,1720451444183,-200.0,0.00036798,30]
[331532348,1720451444192,-200.0,0.00036798,30]
[331532349,1720451444202,-203.708153,0.00036798,30]
[331532350,1720451444212,-150.0,0.00036798,30]
[331532351,1720451444222,-411.73760477,0.00036803,7]
[331532352,1720451444231,-685.0,0.00036821,2]
[331532353,1720451444240,-411.73760477,0.00036858,7]
[331532354,1720451444250,-158.47387793,0.0003692,7]
[331532355,1720451444259,-411.73760477,0.00036981,7]
[331532356,1720451444268,-1200.0,0.00037,2]
[331532357,1720451444278,-2500.0,0.00037,2]
[331532358,1720451444287,-493.0,0.00037,2]
[331532359,1720451444296,-166.70724827,0.00037139,7]
[331532360,1720451444306,-283.33195133,0.00037255,7]
[331532361,1720451444315,-1007.4,0.0003748,2]
[331532362,1720451444324,-1273.3040719,0.00037482,7]
[331532363,1720451444333,-796.76486149,0.00037571,7]
[331532364,1720451444342,-171.512574,0.00037643,7]
[331532365,1720451444352,-153.67497119,0.00037679,7]
[331532366,1720451444362,-796.76486149,0.00037814,7]
[331532367,1720451444371,-161.26799713,0.00037873,7]
[331532368,1720451444381,-171.512574,0.00037959,7]
[331532369,1720451444390,-1700.0,0.00038,2]
[331532370,1720451444399,-153.67497119,0.00038135,7]
[331532371,1720451444409,-283.33195133,0.00038162,7]
[331532372,1720451444419,-151.29388906,0.00038348,7]
[331532373,1720451444428,-151.29388906,0.00038379,7]
[331532374,1720451444438,-151.0,0.00038436,3]
[331532375,1720451444448,-171.512574,0.00038496,7]
[331532376,1720451444457,-171.512574,0.00038583,7]
[331532377,1720451444467,-411.73760477,0.00038655,7]
[331532378,1720451444482,-154.84072062,0.00038679,7]
[331532379,1720451444491,-153.67497119,0.00038703,7]
[331532380,1720451444507,-158.47387793,0.00038706,7]
[331532381,1720451444517,-159.0,0.000389,2]
[331532382,1720451444527,-160.0,0.00039,13]
[331532383,1720451444536,-411.73760477,0.00039052,7]
[331532384,1720451444546,-1007.4,0.0003907,2]
[331532385,1720451444556,-796.76486149,0.00039085,7]
[331532386,1720451444566,-283.33195133,0.00039112,7]
[331532387,1720451444576,-283.33195133,0.00039154,7]
[331532388,1720451444585,-179.41419415,0.00039163,7]
[331532389,1720451444595,-411.73760477,0.00039171,7]
[331532390,1720451444605,-156.84,0.00039184,2]
[331532391,1720451444615,-1273.3040719,0.00039356,7]
[331532392,1720451444625,-151.0,0.00039392,2]
[331532393,1720451444635,-283.33195133,0.00039421,7]
[331532394,1720451444644,-171.512574,0.00039548,7]
[331532395,1720451444658,-796.76486149,0.00039559,7]
[331532396,1720451444668,-796.76486149,0.00039671,7]
[331532397,1720451444678,-1273.3040719,0.00039683,7]
[331532398,1720451444688,-150.71034106,0.00039696,7]
[331532399,1720451444699,-2500.0,0.000397,2]
[331532400,1720451444708,-5051.70606487,0.0004,4]
[331532401,1720451444718,-514.10544603,0.0004,30]
[331532402,1720451444729,-270.67653065,0.0004,30]
[331532403,1720451444738,-1750.0,0.0004,2]
[331532404,1720451444748,-151.0,0.0004,120]
[331532405,1720451444757,-562.84687989,0.0004,4]
[331532406,1720451444766,-796.76486149,0.00040021,30]
[331532407,1720451444776,-302.0,0.00040054,4]
[331532408,1720451444785,-153.67497119,0.00040072,30]
[331532409,1720451444795,-1273.3040719,0.00040136,30]
[331532410,1720451444804,-161.56934605,0.00040202,30]
[331532411,1720451444813,-411.73760477,0.00040283,30]
[331532412,1720451444822,-171.512574,0.0004046,30]
[331532413,1720451444832,-796.76486149,0.00040636,30]
[331532414,1720451444842,-161.56934605,0.00040644,30]
[331532415,1720451444851,-1007.4,0.0004066,2]
[331532416,1720451444861,-152.0,0.00040702,3]
[331532417,1720451445136,-604.0,0.00040727,7]
[331532418,1720451445145,-411.73760477,0.00040754,30]
[331532419,1720451445155,-151.0,0.00040822,120]
[331532420,1720451445165,-171.512574,0.00040908,30]
[331532421,1720451445174,-275.01,0.00041,7]
[331532422,1720451445184,-157.0,0.00041096,2]
[331532423,1720451445194,-163.1,0.00041096,2]
[331532424,1720451445204,-170.36939168,0.00041276,30]
[331532425,1720451445214,-1273.3040719,0.00041349,30]
[331532426,1720451445223,-283.33195133,0.00041393,30]
[331532427,1720451445234,-796.76486149,0.0004142,30]
[331532428,1720451445243,-151.0,0.00041644,120]
[331532429,1720451445253,-171.512574,0.00041665,30]
[331532430,1720451445263,-282.6539296,0.00041846,4]
[331532431,1720451445272,-156.84,0.00041872,2]
[331532432,1720451445282,-13454.31991122,0.00042,20]
[331532433,1720451445292,-450.0,0.00042,30]
[331532434,1720451445302,-1800.0,0.00042,2]
[331532435,1720451445311,-151.29388906,0.00042091,30]
[331532436,1720451445321,-153.67497119,0.00042166,30]
[331532437,1720451445331,-1273.3040719,0.00042217,30]
[331532438,1720451445341,-1007.4,0.0004225,2]
[331532439,1720451445350,-362.33,0.00042329,2]
[331532440,1720451445360,-171.512574,0.00042367,30]
[331532441,1720451445370,-151.0,0.00042466,120]
[331532442,1720451445379,-764.0,0.000425,2]
[331532443,1720451445389,-2500.0,0.000425,2]
[331532444,1720451445399,-493.7171232,0.000425,2]
[331532445,1720451445408,-796.76486149,0.00042597,30]
[331532446,1720451445418,-152.38462349,0.00042597,30]
[331532447,1720451445428,-796.76486149,0.00042628,30]
[331532448,1720451445438,-796.76486149,0.00042678,30]
[331532449,1720451445448,-151.29388906,0.00042685,30]
[331532450,1720451445458,-150.01,0.00042699,2]
[331532451,1720451445468,-5926.80256744,0.00042699,2]
[331532454,1720451445489,-500.0,0.000427,15]
[331532456,1720451445499,-1273.3040719,0.00042722,30]
[331532457,1720451445508,-153.67497119,0.00042823,30]
[331532458,1720451445518,-160.0,0.000429,18]
[331532459,1720451445528,-170.76527529,0.000429,9]
[331532460,1720451445537,-216.0,0.000429,2]
[331532461,1720451445547,-491.0,0.000429,29]
[331532462,1720451445556,-196.291847,0.000429,18]
[331532463,1720451445566,-191.0,0.000429,29]
[331532464,1720451445575,-471.59003858,0.000429,2]
[331532465,1720451445584,-796.76486149,0.00042973,30]
[331532466,1720451445594,-2060.4997241,0.00042989,2]
[331532467,1720451445603,-267.92913545,0.0004299,2]
[331532468,1720451445614,-862602.5156916,0.00043,4]
[331532469,1720451445624,-81770.62424666,0.00043,5]
[331532470,1720451445636,-677.46818726,0.00043,10]
[331532471,1720451445647,-150998.78281125,0.00043,14]
[331532472,1720451445657,-289.63234224,0.00043,120]
[331532473,1720451445666,-285.04201943,0.00043,10]
[331532474,1720451445677,-163.67,0.00043,7]
[331532475,1720451445687,-163.49,0.00043,7]
[331532476,1720451445697,-200.0,0.00043,30]
[331532477,1720451445707,-160.0,0.00043,30]
[331532478,1720451445719,-275.01,0.00043,7]
[331532479,1720451445729,-293.00547377,0.00043,2]
[331532480,1720451445738,-13694.4779404,0.00043083,2]
[331532481,1720451445747,-241.8015783,0.00043113,2]
[331532482,1720451445756,-283.33195133,0.00043187,30]
[331532484,1720451445765,-275.01,0.000432,7]
[331532486,1720451445775,-151.0,0.00043233,120]
[331532487,1720451445784,-151.0,0.00043288,120]
[331532488,1720451445795,-152.0,0.00043303,4]
[331532489,1720451445805,-16466.46446457,0.0004333,2]
[331532490,1720451445814,-275.01,0.000434,7]
[331532492,1720451445824,-171.512574,0.00043473,30]
[331532494,1720451445834,-163.67,0.000435,7]
[331532496,1720451445843,-163.49,0.000435,7]
[331532498,1720451445853,-150.0,0.00043528,10]
[331532499,1720451445862,-796.76486149,0.00043579,30]
[331532501,1720451445872,-1273.3040719,0.00043639,30]
[331532502,1720451445882,-283.33195133,0.00043822,30]
[331532504,1720451445892,-172.87089512,0.00043835,120]
[331532506,1720451445901,-2478.65,0.00043835,120]
[331532508,1720451445911,-1007.4,0.0004384,2]
[331532510,1720451445921,-150.71034106,0.00043841,30]
[331532512,1720451445931,-275.01,0.000439,7]
[331532514,1720451445940,-150.0,0.00043979,60]
[331532516,1720451445950,-50000.0,0.00044,34]
[331532518,1720451445960,-50000.0,0.00044,44]
[331532520,1720451445970,-50399.0,0.00044,28]
[331532521,1720451445990,-10000.0,0.00044,7]
[331532522,1720451445999,-207.92521327,0.00044,7]
[331532523,1720451446008,-1400.0,0.00044,10]
[331532524,1720451446017,-1850.0,0.00044,2]
[331532525,1720451446026,-655.256263,0.00044,57]
[331532526,1720451446035,-796.76486149,0.00044004,30]
[331532527,1720451446045,-161.56934605,0.00044054,30]
[331532528,1720451446055,-150.0,0.00044081,120]
[331532529,1720451446064,-1273.3040719,0.00044087,30]
[331532530,1720451446074,-151.0,0.0004411,120]
[331532531,1720451446083,-283.33195133,0.00044182,30]
[331532532,1720451446093,-637.4,0.00044384,120]
[331532533,1720451446103,-159.67604655,0.000444,2]
[331532534,1720451446113,-155.68214214,0.00044488,30]
[331532535,1720451446123,-152.38462349,0.00044496,30]
[331532536,1720451446132,-156.84,0.00044561,2]
[331532537,1720451446142,-1273.3040719,0.00044572,30]
[331532538,1720451446152,-283.33195133,0.00044618,30]
[331532539,1720451446162,-155.0,0.00044628,10]
[331532540,1720451446172,-2478.65,0.00044657,120]
[331532541,1720451446181,-15000.0,0.00044798,90]
[331532542,1720451446191,-10085.0604402,0.000448,2]
[331532543,1720451446206,-151.0,0.00044849,120]
[331532544,1720451446232,-151.29388906,0.0004485,30]
[331532545,1720451446252,-796.76486149,0.00044894,30]
[331532546,1720451446264,-796.76486149,0.00044916,30]
[331532547,1720451446274,-151.0,0.00044932,120]
[331532548,1720451446286,-154.84072062,0.00044975,30]
[331532549,1720451446301,-150.0,0.00044979,60]
[331532550,1720451446312,-5000.0,0.00044986,4]
[331532551,1720451446323,-50000.0,0.00045,35]
[331532552,1720451446333,-50000.0,0.00045,45]
[331532553,1720451446343,-2245.7757973,0.00045,14]
[331532554,1720451446352,-1383.45687088,0.00045,29]
[331532555,1720451446362,-250.0,0.00045,14]
[331532556,1720451446372,-1845.59430504,0.00045,14]
[331532557,1720451446381,-160.0,0.00045,21]
[331532558,1720451446390,-213.51591335,0.00045,15]
[331532559,1720451446399,-10486.0,0.00045,15]
[331532560,1720451446409,-50000.0,0.00045,15]
[331532561,1720451446419,-7000.0,0.00045,14]
[331532562,1720451446428,-1201.35623781,0.00045,2]
[331532563,1720451446437,-9998.94610515,0.00045,4]
[331532564,1720451446447,-300.0,0.0004503,20]
[331532565,1720451446457,-325.60468723,0.000452,2]
[331532566,1720451446466,-2500.0,0.000452,2]
[331532567,1720451446478,-163.68,0.000452,7]
[331532568,1720451446487,-411.73760477,0.00045275,30]
[331532569,1720451446497,-153.67497119,0.00045293,30]
[331532570,1720451446506,-411.73760477,0.00045394,30]
[331532571,1720451446515,-1007.4,0.0004543,5]
[331532572,1720451446524,-2478.65,0.00045479,120]
[331532573,1720451446533,-153.23456324,0.00045748,30]
[331532574,1720451446542,-151.0,0.00045753,120]
[331532575,1720451446551,-615.0,0.0004589,20]
[331532576,1720451446561,-152.0,0.00045905,5]
[331532577,1720451446570,-1273.3040719,0.00045926,30]
[331532578,1720451446579,-796.08,0.00045926,2]
[331532579,1720451446589,-676.66,0.00045926,2]
[331532580,1720451446599,-173.33,0.00045926,2]
[331532581,1720451446608,-171.512574,0.00045935,30]
[331532582,1720451446618,-150.0,0.00045979,60]
[331532583,1720451446627,-50000.0,0.00046,36]
[331532584,1720451446637,-50000.0,0.00046,46]
[331532585,1720451446647,-50000.0,0.00046,18]
[331532586,1720451446660,-1900.0,0.00046,2]
[331532587,1720451446670,-163.49,0.00046,7]
[331532588,1720451446681,-154.44596459,0.00046102,30]
[331532589,1720451446690,-471.59003858,0.00046195,2]
[331532590,1720451446701,-1273.3040719,0.00046252,30]
[331532591,1720451446711,-2478.65,0.00046301,120]
[331532592,1720451446722,-283.33195133,0.00046358,30]
[331532593,1720451446736,-151.0,0.00046466,120]
[331532594,1720451446746,-4585.20826539,0.000465,2]
[331532595,1720451446756,-151.0,0.00046575,120]
[331532596,1720451446766,-411.73760477,0.00046681,30]
[331532597,1720451446776,-150.0,0.00046979,60]
[331532598,1720451446786,-180.29248151,0.00046999,60]
[331532599,1720451446796,-796.76486149,0.00046999,30]
[331532600,1720451446806,-50000.0,0.00047,37]
[331532601,1720451446816,-50000.0,0.00047,47]
[331532602,1720451446826,-50000.0,0.00047,20]
[331532603,1720451446836,-5000.0,0.00047,15]
[331532604,1720451446846,-275.01,0.00047,7]
[331532605,1720451446856,-1007.4,0.0004702,18]
[331532606,1720451446866,-2478.65,0.00047123,120]
[331532607,1720451446876,-158.47387793,0.00047169,30]
[331532608,1720451446886,-156.84,0.00047249,2]
[331532609,1720451446896,-1012.90713107,0.00047287,10]
[331532610,1720451446907,-1273.3040719,0.00047349,30]
[331532611,1720451446917,-151.0,0.00047397,120]
[331532612,1720451446927,-153.67497119,0.00047442,30]
[331532613,1720451446937,-203.708153,0.000475,24]
[331532614,1720451446946,-152.998564,0.00047522,2]
[331532615,1720451446956,-283.33195133,0.00047595,30]
[331532616,1720451446966,-5153.94753786,0.000476,2]
[331532617,1720451446980,-1273.3040719,0.0004762,30]
[331532618,1720451446990,-283.33195133,0.00047691,30]
[331532619,1720451446999,-1000.0,0.000477,5]
[331532620,1720451447008,-500.0,0.000477,15]
[331532621,1720451447017,-171.512574,0.00047733,30]
[331532622,1720451447026,-764.29363377,0.000479,2]
[331532623,1720451447036,-2500.0,0.000479,2]
[331532624,1720451447045,-2478.65,0.00047945,120]
[331532625,1720451447055,-150.0,0.00047979,60]
[331532626,1720451447065,-330.273266,0.00047988,120]
[331532627,1720451447075,-150.0,0.00047999,60]
[331532628,1720451447084,-50000.0,0.00048,38]
[331532629,1720451447094,-50000.0,0.00048,48]
[331532630,1720451447104,-50000.0,0.00048,23]
[331532631,1720451447113,-1950.0,0.00048,2]
[331532632,1720451447124,-151.0,0.00048045,8]
[331532633,1720451447134,-155.68214214,0.00048065,30]
[331532634,1720451447143,-151.0,0.00048082,120]
[331532635,1720451447153,-1273.3040719,0.0004809,30]
[331532636,1720451447163,-151.0,0.00048219,120]
[331532637,1720451447172,-153.67497119,0.00048233,30]
[331532638,1720451447182,-150.0,0.00048396,120]
[331532639,1720451447191,-153.67497119,0.00048462,30]
[331532640,1720451447201,-153.67497119,0.00048492,30]
[331532641,1720451447210,-152.0,0.00048506,6]
[331532642,1720451447220,-1007.4,0.0004861,30]
[331532643,1720451447233,-199101.02,0.00048677,6]
[331532644,1720451447242,-9113.34,0.00048677,6]
[331532645,1720451447252,-57508.3,0.00048677,6]
[331532646,1720451447262,-19125.8,0.00048677,6]
[331532647,1720451447271,-439.40967919,0.000487,120]
[331532648,1720451447281,-151.29388906,0.00048702,30]
[331532649,1720451447291,-1273.3040719,0.0004871,30]
[331532650,1720451447300,-2478.65,0.00048767,120]
[331532651,1720451447309,-629.0,0.00048783,30]
[331532652,1720451447318,-500.0,0.00048851,120]
[331532653,1720451447328,-150.0,0.00048979,60]
[331532654,1720451447337,-6351.29244012,0.0004899,14]
[331532655,1720451447346,-150.0,0.00048999,60]
[331532656,1720451447355,-41950.06294581,0.00049,39]
[331532657,1720451449190,-8049.93705419,0.00049,39]
[331532658,1720451449205,-50000.0,0.00049,49]
[331532659,1720451449220,-21524.56505502,0.00049,2]
[331532660,1720451449238,-10000.0,0.00049,7]
[331532661,1720451449253,-50000.0,0.00049,25]
[331532662,1720451449269,-6243.97890371,0.00049,2]
[331532663,1720451449283,-770.5034418,0.00049,120]
[331532664,1720451449298,-6726.83939126,0.00049015,6]
[331532665,1720451449389,-5304.51060874,0.00049015,6]
[331532666,1720451449405,-151.0,0.00049041,120]
[331532667,1720451449421,-34145.56,0.00049162,6]
[331532668,1720451449437,-779.93,0.00049162,6]
[331532669,1720451449452,-29065.02,0.00049162,6]
[331532670,1720451449467,-153.67497119,0.0004926,30]
[331532671,1720451449485,-629.0,0.00049286,30]
[331532672,1720451449501,-1000.0,0.000493,2]
[331532673,1720451449516,-163.49,0.000493,7]
[331532674,1720451449532,-8067.02401823,0.00049315,120]
[331532675,1720451449547,-254234.62548793,0.00049315,61]
[331532676,1720451449566,-500.0,0.00049315,61]
[331532677,1720451449627,-13013.17209466,0.00049315,61]
[331532678,1720451449652,-7472.70909865,0.00049315,61]
[331532679,1720451449857,-1485.12147557,0.00022561,2]
[331532680,1720451449880,-563.37,0.00022561,2]
[331532682,1720451450136,-1355.8983028,0.00022561,2]
[331532683,1720451450150,-150.0,0.000251,2]
[331532684,1720451450165,-120562.74026555,0.00049315,61]
[331532685,1720451450189,-764.86328909,0.00049315,61]
[331532686,1720451450206,-2649.16462331,0.00049315,61]
[331532687,1720451450223,-623.83321,0.00049315,61]
[331532688,1720451450257,-52500.5642913,0.00049315,61]
[331532689,1720451450277,-4833.49103655,0.00049315,61]
[331532690,1720451450295,-6608.04244981,0.00049315,61]
[331532691,1720451450312,-968.73086879,0.00049315,61]
[331532699,1720451575872,400.0,0.00025038,120]
[331532703,1720451793064,1224.33244597,0.00011199,2]
[331532706,1720451859420,299.82654638,0.00011199,2]
[331532707,1720451874611,299.82654638,0.00011199,2]
[331532708,1720451879373,1161.26090945,0.00011199,2]
[331532716,1720452103713,9147.0,0.00027,120]
[331532766,1720452632507,-500.0,0.00013231,2]
[331532767,1720452632517,-500.0,0.0001324,2]
[331532768,1720452632526,-167.0,0.00016025,2]
[331532770,1720452632535,-167.0,0.00016554,2]
[331532771,1720452632545,-156.84,0.00016606,2]
[331532773,1720452632554,-167.0,0.00017083,2]
[331532776,1720452632563,-448.9,0.0001726,2]
[331532778,1720452632572,-499.99,0.0001726,2]
[331532780,1720452632581,-222.87,0.00017533,2]
[331532782,1720452632592,-500.0,0.00017533,2]
[331532784,1720452632603,-1706.12396369,0.00017533,2]
[331532785,1720452632614,-1542.36140451,0.00017533,2]
[331532786,1720452632623,-98.52859549,0.00017612,2]
[331532787,1720452632634,-68.47140451,0.00017612,2]
[331532788,1720452632642,-167.0,0.00018141,2]
[331532789,1720452633002,-250.0,0.00018365,2]
[331532790,1720452633012,-185.95,0.00018425,2]
[331532791,1720452633023,-200.0,0.00018639,2]
[331532792,1720452633033,-1000.0,0.00018668,2]
[331532793,1720452633042,-167.0,0.0001867,2]
[331532794,1720452633051,-1760.75916821,0.00018717,2]
[331532795,1720452633065,-156.28,0.00018724,2]
[331532796,1720452633074,-57.75672366,0.00018836,2]
[331532797,1720452633085,-266.72327634,0.00018836,2]
[331532798,1720452633094,-434.97196519,0.00018899,2]
[331532799,1720452633108,-188.40797232,0.00018899,2]
[331532801,1720452633120,-117.27382942,0.00018899,2]
[331532822,1720452637887,-37.72617058,0.00018899,2]
[331532823,1720452637896,-155.09850441,0.00018899,2]
[331532824,1720452637907,-155.0,0.00018919,2]
[331532825,1720452637917,-172.61665954,0.00018919,2]
[331532826,1720452637928,-155.0,0.00018919,2]
[331532827,1720452637938,-176.22964096,0.00018919,2]
[331532828,1720452637949,-327.50694654,0.00018919,2]
[331532829,1720452637959,-198.15979019,0.00018999,2]
[331532830,1720452637969,-5000.0,0.00019,2]
[331532831,1720452637979,-156.28,0.0001905,2]
[331532832,1720452637990,-370.90972778,0.00019069,2]
[331532833,1720452638000,-155.0,0.00019177,2]
[331532834,1720452638010,-158.19,0.0001919,2]
[331532835,1720452638020,-281.09911487,0.0001935,2]
[331532836,1720452638030,-156.28,0.00019375,2]
[331532837,1720452638040,-156.28,0.000197,2]
[331532838,1720452638050,-2462.65811393,0.000199,2]
[331532839,1720452638063,-746.33855735,0.000199,2]
[331532840,1720452638080,-841.67496685,0.000199,2]
[331532841,1720452638092,-815.0,0.000199,2]
[331532842,1720452638106,-303.29325585,0.000199,2]
[331532843,1720452638119,-4551.22560602,0.000199,2]
[331532844,1720452638129,-300.0,0.00019964,2]
[331532845,1720452638140,-300.0,0.00020206,2]
[331532846,1720452638151,-7778.0,0.00020257,2]
[331532847,1720452638161,-156.84,0.00020517,2]
[331532848,1720452638172,-212.4502,0.00020978,2]
[331532849,1720452638183,-1000.0,0.00020988,2]
[331532850,1720452638193,-432.68825395,0.00021,2]
[331532851,1720452638203,-1000.0,0.00021001,2]
[331532852,1720452638213,-335.61916994,0.00021022,2]
[331532853,1720452638223,-216.0,0.00021077,2]
[331532854,1720452638233,-102755.60652,0.00021088,2]
[331532855,1720452638246,-744.14234226,0.00021088,2]
[331532856,1720452638258,-1144.5,0.00021088,2]
[331532857,1720452638271,-287106.74614775,0.00021088,2]
[331532858,1720452638283,-532.07786788,0.00021088,2]
[331532859,1720452638299,-569.89984797,0.00021088,2]
[331532860,1720452638311,-970.53103415,0.00021088,2]
[331532862,1720452638324,-483.66,0.00021088,2]
[331532868,1720452640019,-5145.9968606,0.00021088,2]
[331532869,1720452640031,-961.27203814,0.00021088,2]
[331532870,1720452640043,-556.41058841,0.00021088,2]
[331532871,1720452640127,-14453.14132,0.00021088,2]
[331532872,1720452640139,-467.48480598,0.00021088,2]
[331532873,1720452640242,-6107.84038738,0.00021088,2]
[331532916,1720452644018,-13388.09652244,0.00021088,2]
[331532917,1720452644029,-380.20994438,0.00021088,2]
[331532918,1720452644041,-338.99589186,0.00021088,2]
[331532919,1720452644076,-2180.37715403,0.00021088,2]
[331532920,1720452644087,-1152.31990522,0.00021088,2]
[331532921,1720452644099,-639.83823708,0.00021088,2]
[331532941,1720452645974,-155.0,0.00019077,2]
[331532942,1720452645984,-59920.85258447,0.00021088,2]
[331532943,1720452645994,-260.04977456,0.00021122,2]
[331532944,1720452646003,-192.80417238,0.0002139,2]
[331532945,1720452646013,-180.0,0.00021397,2]
[331532946,1720452646023,-875.973,0.000214,2]
[331532947,1720452646032,-2823.517,0.000214,2]
[331532948,1720452646042,-38250.0,0.000214,2]
[331532949,1720452646051,-1820.559,0.000214,2]
[331532950,1720452646063,-837.88,0.000214,2]
[331532951,1720452646076,-2377.0,0.000214,2]
[331532952,1720452646086,-300.0,0.00021575,2]
[331532953,1720452646096,-870.0,0.00021644,2]
[331532954,1720452646108,-300.0,0.000219,7]
[331532955,1720452646118,-150.0,0.00021918,2]
[331532956,1720452646127,-318.7,0.00021918,2]
[331532957,1720452646137,-50000.0,0.00022,2]
[331532958,1720452646147,-3877.93443422,0.00022068,2]
[331532959,1720452646157,-6284.03762925,0.00022068,2]
[331532960,1720452646166,-1376.52133367,0.00022098,2]
[331532961,1720452646176,-3175.11825841,0.00022098,2]
[331532962,1720452646185,-209.47073928,0.00022191,2]
[331532963,1720452646195,-188.35612588,0.00022191,2]
[331532964,1720452646204,-1488.27565616,0.00022211,2]
[331532965,1720452646213,-616.63744864,0.00022211,2]
[331532966,1720452646223,-868.44671232,0.00022211,2]
[331532967,1720452646232,-893.79989031,0.00022222,2]
[331532968,1720452646241,-400.0,0.00022256,2]
[331532969,1720452646252,-150.0,0.00022495,2]
[331532970,1720452646261,-366.10477922,0.00022989,2]
[331532971,1720452646271,-150.0,0.00023071,2]
[331532972,1720452646280,-1000.0,0.00023335,2]
[331532973,1720452646290,-150.0,0.00023648,2]
[331532974,1720452646299,-3699.30134325,0.00023999,2]
[331532975,1720452646309,-150.0,0.00024225,2]
[331532976,1720452646319,-2375.0,0.000244,2]
[331532977,1720452646328,-156.84,0.00024427,2]
[331532978,1720452646338,-150.0,0.00024802,2]
[331532979,1720452646347,-500.0,0.00024932,15]
[331532980,1720452646356,-500.0,0.00024932,2]